bitfinex/quotes_ETHUSD_20250523
["timestamp","ask_amount","ask_price","bid_price","bid_amount"]
[1747983720636,4.87655377,2658.9,2658.8,32.207]
[1747983720842,0.02,2658.9,2658.8,32.207]
[1747983721209,0.02,2658.9,2658.8,44.44315645]
[1747983722001,0.02,2658.9,2658.8,43.96809523]
[1747983722207,0.02,2658.9,2658.8,44.44315645]
[1747983722401,3.75845508,2660.7,2658.9,8.0]
[1747983722402,0.9928,2660.5,2658.9,8.0]
[1747983722701,3.75921742,2660.2,2659.6,3.75991705]
[1747983722933,3.75887841,2660.4,2659.8,3.75968117]
[1747983723114,0.9928,2660.5,2659.8,16.228]
[1747983723323,3.75944721,2660.0,2659.8,16.228]
[1747983723510,3.75885159,2660.4,2659.8,43.476]
[1747983723711,3.75916621,2660.2,2659.8,43.476]
[1747983724036,3.75926124,2660.1,2659.8,43.476]
[1747983724251,0.9928,2660.5,2659.8,43.476]
[1747983724743,3.77953983,2659.9,2659.8,43.474]
[1747983724898,3.77953983,2659.9,2659.8,43.472]
[1747983725098,5.59453538,2659.9,2659.8,16.228]
[1747983725341,1.0611,2659.4,2659.2,16.225]
[1747983725549,3.76038807,2659.3,2659.2,16.225]
[1747983725749,3.76038807,2659.3,2659.2,32.202]
[1747983726312,4.6185686,2659.3,2659.2,16.225]
[1747983726635,4.6185686,2659.3,2659.2,32.202]
[1747983726817,4.6185686,2659.3,2659.2,16.225]
[1747983727018,4.6185686,2659.3,2659.2,32.202]
[1747983729122,4.6185686,2659.3,2659.2,16.225]
[1747983729322,4.6185686,2659.3,2659.2,32.202]
[1747983729653,4.6185686,2659.3,2659.2,16.225]
[1747983729870,5.6407686,2659.3,2659.2,16.225]
[1747983730214,6.1907686,2659.3,2659.2,16.225]
[1747983733979,3.7632183,2657.3,2657.2,1.19763632]
[1747983735042,1.0392,2657.7,2657.2,1.19763632]
[1747983735259,3.7632183,2657.3,2657.2,1.19763632]
[1747983735580,3.76299074,2657.5,2657.2,4.04399995]
[1747983735780,3.76294689,2657.5,2657.2,2.84636363]
[1747983736082,4.80189918,2657.7,2657.2,2.84636363]
[1747983736083,3.76272395,2657.7,2657.2,5.75884419]
[1747983736400,1.0392,2658.0,2657.2,5.75884419]
[1747983736834,3.76263409,2657.8,2657.2,2.91248056]
[1747983737036,3.76263409,2657.8,2657.3,1.42004806]
[1747983737240,3.76263409,2657.8,2657.4,16.229]
[1747983737473,3.76239282,2657.9,2657.5,15.981]
[1747983737795,1.0709,2658.3,2657.8,2.91248056]
[1747983738005,4.75575884,2659.2,2657.9,11.27]
[1747983738006,3.76205208,2658.2,2657.9,11.27]
[1747983738283,3.7620857,2658.1,2658.0,15.981]
[1747983738583,3.7620857,2658.1,2658.0,27.251]
[1747983740461,3.7619081,2658.3,2658.0,28.65565793]
[1747983740666,4.7661724,2658.7,2658.0,28.65565793]
[1747983740971,1.0049,2658.7,2658.0,28.65565793]
[1747983741196,3.76146602,2658.6,2658.0,27.251]
[1747983741412,3.76146602,2658.6,2658.1,2.91248056]
[1747983741566,1.0049,2658.7,2658.1,2.91248056]
[1747983741754,3.76161368,2658.5,2658.1,2.91248056]
[1747983741954,3.76125379,2658.7,2658.4,2.91248056]
[1747983742262,3.76137816,2658.6,2658.5,32.211]
[1747983746421,3.76129649,2658.7,2658.5,43.481]
[1747983746596,3.76121068,2658.8,2658.5,43.481]
[1747983746917,3.76128818,2658.7,2658.5,43.481]
[1747983747714,3.76086299,2659.0,2658.5,16.23]
[1747983748019,3.76123669,2658.7,2658.6,27.221]
[1747983748228,3.76137816,2658.6,2658.5,16.23]
[1747983748364,3.76137816,2658.6,2658.5,43.45]
[1747983751206,3.76137816,2658.6,2658.5,16.23]
[1747983751408,3.76137816,2658.6,2658.5,43.45]
[1747983751914,4.85837816,2658.6,2658.5,43.45]
[1747983752559,3.76137816,2658.6,2658.5,43.45]
[1747983755086,3.76137816,2658.6,2658.5,16.23]
[1747983755280,4.62316965,2658.6,2658.5,32.18]
[1747983755484,4.62316965,2658.6,2658.5,43.45]
[1747983756265,3.76137816,2658.6,2658.5,43.45]
[1747983760608,3.76137816,2658.6,2658.5,32.18]
[1747983760775,3.76137816,2658.6,2658.5,43.45]
[1747983760978,3.76137816,2658.6,2658.5,16.23]
[1747983761172,3.76137816,2658.6,2658.5,43.45]
[1747983761380,4.62316965,2658.6,2658.5,43.45]
[1747983762478,4.62316965,2658.6,2658.5,16.23]
[1747983762679,4.62316965,2658.6,2658.5,43.45]
[1747983763093,4.62316965,2658.6,2658.5,16.23]
[1747983763296,5.72926965,2658.6,2658.5,32.18]
[1747983763590,5.72926965,2658.6,2658.0,15.951]
[1747983763591,4.8681857,2658.1,2658.0,15.951]
[1747983763808,3.76293508,2657.5,2657.4,16.23]
[1747983763996,3.76293508,2657.5,2657.4,43.451]
[1747983765618,3.76293508,2657.5,2657.4,16.23]
[1747983765822,3.76293508,2657.5,2657.4,43.451]
[1747983767048,5.73121631,2658.1,2657.4,43.451]
[1747983767049,0.86299884,2658.1,2657.4,32.181]
[1747983767197,0.86179149,2658.6,2657.4,43.453]
[1747983767198,3.76265449,2657.7,2657.4,43.453]
[1747983767397,1.0339,2658.5,2657.4,43.453]
[1747983767621,3.76262439,2657.8,2657.4,43.453]
[1747983767821,3.76278146,2657.7,2657.5,27.224]
[1747983768128,3.76248819,2657.9,2657.5,27.224]
[1747983768329,3.7619625,2658.2,2657.5,27.224]
[1747983768909,3.7619625,2658.2,2657.4,16.23]
[1747983768910,3.76293508,2657.5,2657.4,16.23]
[1747983769133,3.76293508,2657.5,2657.4,43.454]
[1747983769540,3.76274219,2657.7,2657.4,43.455]
[1747983769735,3.76280034,2657.6,2657.4,43.455]
[1747983770300,1.0507,2658.2,2657.4,43.455]
[1747983770500,3.76209506,2658.1,2657.6,3.76276001]
[1747983770700,1.0507,2658.4,2657.4,43.455]
[1747983770905,3.76215948,2658.1,2657.6,3.76275794]
[1747983771233,3.76203654,2658.2,2657.7,4.51513341]
[1747983771640,1.0507,2658.4,2657.4,43.455]
[1747983771838,3.76237696,2657.9,2657.4,47.21795484]
[1747983772005,3.76231511,2658.0,2657.5,3.76289836]
[1747983772397,3.76231511,2658.0,2657.6,27.225]
[1747983772834,3.76214903,2658.1,2657.6,30.98774748]
[1747983773039,3.7623053,2658.0,2657.6,27.225]
[1747983773538,3.76236984,2657.9,2657.6,27.225]
[1747983773839,3.76225185,2658.0,2657.6,27.225]
[1747983774347,3.76184616,2658.3,2657.7,3.76257981]
[1747983774653,3.76240002,2657.9,2657.6,27.225]
[1747983774810,3.76229698,2658.0,2657.6,27.225]
[1747983775354,3.76300964,2657.5,2657.0,3.76357073]
[1747983775513,1.0709,2657.9,2657.3,16.232]
[1747983775713,3.76294967,2657.5,2657.3,16.232]
[1747983775914,3.76294967,2657.5,2657.4,27.225]
[1747983776337,3.7628327,2657.6,2657.4,27.225]
[1747983776848,3.76266637,2657.7,2657.4,27.225]
[1747983777048,3.76280012,2657.6,2657.3,16.232]
[1747983777250,4.83513508,2657.5,2657.4,15.926]
[1747983777751,4.83513508,2657.5,2657.4,27.198]
[1747983777961,3.76293508,2657.5,2657.4,27.198]
[1747983779438,3.76335992,2657.2,2657.1,0.02]
[1747983779636,3.76335992,2657.2,2657.1,15.947]
[1747983781263,3.76335992,2657.2,2657.1,0.02]
[1747983781468,4.85085992,2657.2,2657.1,15.947]
[1747983782840,4.85085992,2657.2,2657.1,0.02]
[1747983783050,4.85085992,2657.2,2656.1,0.02]
[1747983783051,3.76378486,2656.9,2656.6,15.929]
[1747983783257,4.80409329,2656.4,2656.3,15.929]
[1747983783908,3.76477674,2656.2,2656.1,0.02]
[1747983784087,3.76430895,2656.6,2656.1,15.949]
[1747983784377,3.76459663,2656.4,2656.2,1.59866499]
[1747983784567,3.76435159,2656.5,2656.1,15.949]
[1747983784762,1.0349,2656.6,2656.1,15.949]
[1747983784964,3.7645128,2656.4,2656.1,15.949]
[1747983785152,3.76459042,2656.4,2656.1,15.949]
[1747983785754,3.76436027,2656.5,2656.1,15.949]
[1747983785973,3.76452415,2656.4,2656.1,15.949]
[1747983786385,1.0875,2656.8,2656.1,15.949]
[1747983786386,3.76473371,2656.3,2656.1,15.949]
[1747983786549,4.85143422,2656.8,2656.1,15.949]
[1747983786884,3.76423395,2656.6,2656.1,15.949]
[1747983787058,3.76451197,2656.4,2656.1,15.949]
[1747983787444,3.76437875,2656.5,2656.2,11.276]
[1747983787445,3.76440625,2656.5,2656.2,11.276]
[1747983787755,11.76357113,2657.1,2656.2,11.276]
[1747983787756,4.62686745,2657.5,2656.2,11.276]
[1747983787956,3.76348829,2657.2,2656.2,15.0406851]
[1747983788159,3.76251034,2657.8,2656.7,3.76401578]
[1747983788374,1.0126,2657.9,2656.8,47.21285445]
[1747983788686,1.0126,2657.9,2657.1,3.76341565]
[1747983788687,3.76276435,2657.7,2657.1,3.76341565]
[1747983788866,3.76276435,2657.7,2657.0,3.7636432]
[1747983788867,3.76276435,2657.7,2657.2,3.7633343]
[1747983789071,4.77499398,2657.9,2657.3,15.933]
[1747983789072,1.0126,2657.9,2657.3,15.933]
[1747983789269,1.0126,2657.9,2657.4,27.21]
[1747983789585,3.76357134,2657.1,2656.8,16.239]
[1747983789743,3.76307669,2657.4,2657.3,11.277]
[1747983789941,3.76307669,2657.4,2657.3,27.21]
[1747983792685,4.51567974,2657.4,2657.3,27.21]
[1747983793261,3.76307669,2657.4,2657.3,27.21]
[1747983793987,3.76307669,2657.4,2657.3,15.933]
[1747983796464,3.76378486,2656.9,2656.8,16.239]
[1747983796665,3.76358328,2657.1,2656.8,43.446]
[1747983797009,3.76374316,2657.0,2656.8,43.446]
[1747983797302,3.76358328,2657.1,2656.8,43.446]
[1747983797504,3.76372396,2657.0,2656.8,43.446]
[1747983797707,3.76378486,2656.9,2656.8,32.17]
[1747983797890,3.76378486,2656.9,2656.8,43.446]
[1747983798062,3.76375754,2657.0,2656.8,43.446]
[1747983798470,3.76378486,2656.9,2656.8,43.446]
[1747983798681,3.76370691,2657.0,2656.8,43.446]
[1747983800407,3.76357444,2657.1,2656.8,43.446]
[1747983800609,3.76369057,2657.0,2656.8,43.446]
[1747983800810,1.1034,2657.4,2656.8,43.446]
[1747983801014,3.76345166,2657.2,2656.8,43.446]
[1747983801815,3.76329431,2657.3,2656.8,47.20984203]
[1747983802112,3.76337955,2657.2,2656.8,43.446]
[1747983803411,3.76287027,2657.6,2657.1,3.76337067]
[1747983803614,1.0357,2657.8,2656.8,47.20992483]
[1747983803785,3.76338782,2657.2,2656.8,47.20992483]
[1747983803989,3.76338782,2657.2,2656.8,43.446]
[1747983804243,3.76338782,2657.2,2656.9,32.168]
[1747983804392,3.76338782,2657.2,2656.9,15.931]
[1747983805317,4.32795502,2657.7,2657.0,16.237]
[1747983805487,3.76343792,2657.2,2657.1,11.276]
[1747983806205,3.76343792,2657.2,2657.0,16.237]
[1747983806387,3.76343792,2657.2,2657.1,11.275]
[1747983807128,3.76329956,2657.3,2657.1,11.275]
[1747983807307,1.0524,2658.2,2657.1,11.275]
[1747983807482,1.0524,2658.2,2657.3,3.76313417]
[1747983807683,3.76251113,2657.8,2657.4,15.901]
[1747983808292,4.81435366,2658.2,2657.4,15.901]
[1747983808492,3.76257786,2657.8,2657.4,15.901]
[1747983808705,3.76257786,2657.8,2657.5,15.9]
[1747983809311,3.76268289,2657.7,2657.5,15.9]
[1747983809623,3.76227553,2658.0,2657.5,19.66280841]
[1747983809924,3.76240089,2657.9,2657.5,15.9]
[1747983810087,3.76240089,2657.9,2657.5,18.24261687]
[1747983810915,3.76225619,2658.0,2657.5,18.24261687]
[1747983811122,3.76257666,2657.8,2657.6,11.275]
[1747983811290,1.0524,2658.2,2657.6,11.275]
[1747983811692,3.76247904,2657.9,2657.6,11.275]
[1747983811999,3.76244329,2657.9,2657.6,11.275]
[1747983812183,3.76200477,2658.2,2657.7,3.80021522]
[1747983812386,3.76200477,2658.2,2657.6,11.275]
[1747983812387,3.76215377,2658.1,2657.6,15.03769723]
[1747983812595,3.76215377,2658.1,2657.7,3.76265133]
[1747983812798,3.76202416,2658.2,2657.8,3.76250748]
[1747983813027,3.76202416,2658.2,2657.7,3.76255574]
[1747983813228,3.76202416,2658.2,2657.8,1.88003437]
[1747983813527,3.7620985,2658.1,2657.8,1.88003437]
[1747983816020,3.76155625,2658.5,2657.3,8.0]
[1747983816348,3.76257685,2657.8,2657.4,27.171]
[1747983816547,3.76257212,2657.8,2657.4,27.171]
[1747983816748,4.81361904,2658.1,2657.5,11.273]
[1747983816938,3.76273459,2657.7,2657.5,11.273]
[1747983817135,3.76257186,2657.8,2657.5,11.273]
[1747983817348,3.76225453,2658.0,2657.5,11.273]
[1747983817547,3.76259637,2657.8,2657.5,11.273]
[1747983818055,3.76194417,2658.2,2657.6,3.7627242]
[1747983818269,3.76226123,2658.0,2657.6,3.7627242]
[1747983818614,3.76226123,2658.0,2657.5,15.03587407]
[1747983819568,3.76226123,2658.0,2657.5,15.0358515]
[1747983819953,3.76194417,2658.2,2657.6,3.76278643]
[1747983820158,3.76194417,2658.2,2657.7,3.76259399]
[1747983821467,3.76212756,2658.1,2657.6,3.76271023]
[1747983821672,3.76212756,2658.1,2657.8,16.233]
[1747983821866,3.76212756,2658.1,2657.9,15.897]
[1747983822666,3.76212756,2658.1,2658.0,15.897]
[1747983822974,3.7620857,2658.1,2658.0,15.897]
[1747983823777,3.7620857,2658.1,2658.0,27.17]
[1747983823981,4.80336053,2658.3,2658.0,27.17]
[1747983824277,3.76169611,2658.4,2658.0,27.17]
[1747983824454,3.76180688,2658.3,2658.0,27.17]
[1747983824638,3.7619514,2658.2,2658.0,27.17]
[1747983825167,3.7619514,2658.2,2658.1,16.233]
[1747983826154,3.76171539,2658.4,2658.1,16.233]
[1747983826605,3.76194417,2658.2,2658.1,16.233]
[1747983826750,3.76194417,2658.2,2658.1,27.505]
[1747983826751,4.73984417,2658.2,2658.1,27.505]
[1747983827170,3.76194417,2658.2,2658.1,27.505]
[1747983829504,3.76190454,2658.3,2658.1,27.505]
[1747983829683,3.76175767,2658.4,2658.1,27.505]
[1747983830006,0.9969,2658.6,2658.1,31.2670074]
[1747983830192,3.76171983,2658.4,2658.1,27.505]
[1747983830508,3.76167099,2658.4,2658.1,27.505]
[1747983830806,0.9969,2658.6,2658.1,27.505]
[1747983830988,11.78097956,2658.9,2658.3,3.76170392]
[1747983830989,4.74785194,2658.8,2658.3,3.76170392]
[1747983831198,3.76131356,2658.7,2658.2,3.76183995]
[1747983831376,3.76152557,2658.5,2658.1,27.505]
[1747983831910,3.76131356,2658.7,2658.1,27.505]
[1747983831911,3.76146211,2658.6,2658.1,31.26706514]
[1747983832091,3.76148019,2658.6,2658.1,31.26706514]
[1747983832302,3.76148019,2658.6,2658.1,27.505]
[1747983832610,3.76148019,2658.6,2658.1,31.26702782]
[1747983833204,3.76158577,2658.5,2658.1,27.505]
[1747983833409,3.76158577,2658.5,2658.2,27.167]
[1747983833715,0.02,2658.9,2658.2,27.167]
[1747983833716,8.02,2658.9,2658.2,27.167]
[1747983834005,3.76145131,2658.6,2658.2,27.167]
[1747983834510,4.25776104,2658.9,2658.2,27.167]
[1747983834683,3.76194417,2658.2,2658.1,16.233]
[1747983834885,3.76184587,2658.3,2658.1,43.4]
[1747983835185,3.76174676,2658.4,2658.1,43.4]
[1747983835381,0.85015664,2658.4,2658.1,32.128]
[1747983835588,3.76194417,2658.2,2658.1,16.233]
[1747983835781,3.76194417,2658.2,2658.1,43.399]
[1747983836104,3.76194417,2658.2,2658.1,16.233]
[1747983836306,3.76181087,2658.3,2658.1,43.399]
[1747983836723,0.9783,2658.6,2658.1,43.399]
[1747983836871,0.47395781,2658.5,2658.1,43.399]
[1747983837067,0.9783,2658.6,2658.1,43.399]
[1747983837383,0.02,2658.9,2658.2,0.34950138]
[1747983837694,0.02,2658.9,2658.8,3.76109523]
[1747983837900,0.02,2658.9,2658.8,30.88709523]
[1747983840510,0.02,2658.9,2658.8,27.126]
[1747983841007,0.02,2658.9,2658.8,30.88709523]
[1747983843191,0.02,2658.9,2658.8,3.76109523]
[1747983843403,0.02,2658.9,2658.8,30.88209523]
[1747983844799,0.02,2658.9,2658.8,30.88009523]
[1747983845189,0.02,2658.9,2658.8,3.76109523]
[1747983845386,0.02,2658.9,2658.8,31.63232631]
[1747983847210,0.02,2658.9,2658.8,0.75223108]
[1747983847412,0.02,2658.9,2658.8,31.63232631]
[1747983848991,0.02,2658.9,2658.8,4.51332631]
[1747983849191,0.02,2658.9,2658.8,31.63132631]
[1747983850786,0.02,2658.9,2658.8,20.36332631]
[1747983850984,0.02,2658.9,2658.8,31.63032631]
[1747983853036,0.02,2658.9,2658.8,32.13032631]
[1747983854143,0.02,2658.9,2658.8,31.63032631]
[1747983854498,0.02,2658.9,2658.8,4.51332631]
[1747983854738,0.02,2658.9,2658.8,27.86823108]
[1747983855323,0.02,2658.9,2658.8,31.62932631]
[1747983856110,0.02,2658.9,2658.8,15.849]
[1747983856438,4.84025377,2658.9,2658.8,27.116]
[1747983856740,4.84025377,2658.9,2658.8,15.849]
[1747983856904,3.76183161,2658.3,2658.2,8.0]
[1747983857098,3.76183161,2658.3,2658.2,27.116]
[1747983857405,1.0194,2658.4,2658.2,27.116]
[1747983857615,4.78108644,2658.4,2658.2,27.116]
[1747983857811,3.76158817,2658.5,2658.1,16.233]
[1747983858044,3.76158817,2658.5,2658.3,27.116]
[1747983858846,3.76158817,2658.5,2658.4,8.0]
[1747983859200,4.75493225,2658.6,2658.4,8.0]
[1747983859429,3.76151965,2658.5,2658.4,8.0]
[1747983859836,0.9935,2658.6,2658.4,8.0]
[1747983860144,4.75493417,2658.6,2658.4,8.0]
[1747983860849,3.76151965,2658.5,2658.4,8.0]
[1747983861345,3.76151965,2658.5,2658.4,19.268]
[1747983861717,0.9935,2658.6,2658.4,19.268]
[1747983862026,0.02,2658.9,2658.6,8.0]
[1747983862213,0.02,2658.9,2658.5,11.76146692]
[1747983863052,0.02,2658.9,2658.5,8.0]
[1747983863205,0.02,2658.9,2658.7,8.5]
[1747983863410,3.78106187,2658.9,2658.7,8.5]
[1747983864056,3.76109523,2658.8,2658.7,8.5]
[1747983864340,0.02,2658.9,2658.7,8.5]
[1747983864551,3.78098302,2658.9,2658.7,8.5]
[1747983864749,3.78103293,2658.9,2658.7,8.5]
[1747983864905,3.78103293,2658.9,2658.7,0.5]
[1747983864906,3.76109523,2658.8,2658.7,0.5]
[1747983865246,0.02,2658.9,2658.7,35.119]
[1747983866658,3.76109523,2658.8,2658.7,35.119]
[1747983866952,3.76109523,2658.8,2658.7,8.0]
[1747983867127,3.76109523,2658.8,2658.7,35.119]
[1747983868259,0.02,2658.9,2658.7,35.119]
[1747983868752,3.78096975,2658.9,2658.7,35.119]
[1747983869255,0.02,2658.9,2658.7,35.119]
[1747983870248,0.02,2658.9,2658.7,38.88022278]
[1747983870625,0.02,2658.9,2658.8,11.76109523]
[1747983871746,0.02,2658.9,2658.8,8.0]
[1747983872909,0.02,2658.9,2658.8,11.76109523]
[1747983874029,0.02,2658.9,2658.8,12.26109523]
[1747983875741,0.02,2658.9,2658.8,26.76109523]
[1747983877368,0.02,2659.9,2659.8,11.75968117]
[1747983877531,0.02,2659.9,2659.8,55.06068117]
[1747983877932,0.02,2659.9,2659.8,51.301]
[1747983878488,0.02,2659.9,2659.8,55.06068117]
[1747983887677,0.02,2659.9,2659.8,40.028]
[1747983887929,0.02,2659.9,2659.8,51.292]
[1747983888714,0.02,2659.9,2659.8,27.98568117]
[1747983888914,1.0494,2660.9,2659.9,8.82035323]
[1747983889117,1.0494,2660.9,2660.1,8.0]
[1747983889319,1.0494,2660.9,2660.0,2.82470599]
[1747983889320,1.0494,2660.9,2660.2,1.2166897]
[1747983889619,3.75867493,2660.6,2660.4,8.0]
[1747983889815,3.75833898,2660.8,2660.5,11.264]
[1747983890590,3.75841272,2660.7,2660.5,11.264]
[1747983891802,3.75829777,2660.8,2660.5,11.264]
[1747983892008,3.75829777,2660.8,2659.9,8.0]
[1747983892009,0.9937,2660.4,2659.9,8.0]
[1747983892183,3.75914734,2660.2,2660.1,8.0]
[1747983892523,3.75897851,2660.3,2660.1,8.0]
[1747983892688,0.9937,2660.4,2660.1,8.0]
[1747983892689,4.75259869,2660.4,2660.1,8.0]
[1747983892883,0.9937,2660.4,2660.1,8.0]
[1747983893599,1.0249,2660.7,2660.3,8.0]
[1747983894015,1.0249,2660.7,2660.3,4.25896553]
[1747983894878,1.0249,2660.7,2660.3,0.5]
[1747983895120,1.0249,2660.7,2660.5,8.0]
[1747983896601,1.0493,2660.9,2660.5,11.75860128]
[1747983897392,1.0493,2660.9,2660.5,8.0]
[1747983897624,0.02,2660.9,2660.8,11.75826819]
[1747983897927,0.02,2660.9,2660.8,29.53169665]
[1747983899028,0.02,2660.9,2660.8,22.37931308]
[1747983899395,0.02,2660.9,2660.8,26.13758127]
[1747983899727,4.79922694,2660.9,2660.8,36.57788462]
[1747983900218,4.79922694,2660.9,2660.8,38.11407219]
[1747983900607,1.0411,2660.9,2660.8,38.11407219]
[1747983900816,0.02,2660.9,2660.8,38.11407219]
[1747983901131,0.02,2660.9,2660.8,43.84704637]
[1747983901432,0.02,2660.9,2660.8,38.11407219]
[1747983901789,0.02,2660.9,2660.8,50.74209607]
[1747983902440,0.02,2660.9,2660.8,54.50036426]
[1747983902739,1.0629,2661.8,2660.8,50.74209607]
[1747983902926,4.81985586,2661.8,2661.4,8.0]
[1747983903134,3.75713547,2661.7,2661.5,15.753]
[1747983903311,3.75713547,2661.7,2661.6,11.261]
[1747983904005,3.75727972,2661.5,2661.4,8.0]
[1747983904428,3.75727972,2661.5,2661.4,35.014]
[1747983905027,3.75727972,2661.5,2661.4,35.011]
[1747983905546,5.53932381,2661.5,2661.4,35.011]
[1747983905776,5.53932381,2661.5,2661.4,8.0]
[1747983906043,3.75772589,2661.2,2661.1,8.0]
[1747983906249,1.0605,2660.9,2660.3,2.90421145]
[1747983906432,5.30047551,2660.9,2660.8,31.969]
[1747983907214,1.0605,2660.9,2660.8,31.969]
[1747983907408,1.0138,2661.1,2660.8,31.969]
[1747983907647,1.0138,2661.1,2660.9,2.90421145]
[1747983907648,4.77166316,2661.1,2660.9,2.90421145]
[1747983907832,4.77166316,2661.1,2660.8,31.969]
[1747983907833,3.75812694,2660.9,2660.8,31.969]
[1747983908037,3.75812694,2660.9,2660.8,51.229]
[1747983908347,3.75812694,2660.9,2660.8,24.218]
[1747983908511,5.49023821,2660.9,2660.8,51.23]
[1747983908714,5.49023821,2660.9,2660.8,24.218]
[1747983908941,5.49023821,2660.9,2660.8,39.97]
[1747983909649,5.49023821,2660.9,2660.8,31.97]
[1747983909650,6.04023821,2660.9,2660.8,31.97]
[1747983910755,6.04023821,2660.9,2660.8,16.218]
[1747983910913,4.7600507,2660.6,2660.5,15.753]
[1747983911250,3.75925717,2660.1,2660.0,27.477]
[1747983911549,3.75925717,2660.1,2660.0,51.23]
[1747983911845,3.75919353,2660.2,2660.1,8.0]
[1747983912544,4.80619353,2660.2,2660.1,8.0]
[1747983912945,4.80619353,2660.2,2660.1,19.261]
[1747983913254,4.82755717,2660.1,2660.0,31.969]
[1747983913450,4.82755717,2660.1,2660.0,39.969]
[1747983913753,4.82755717,2660.1,2660.0,24.216]
[1747983914049,4.78959849,2660.0,2659.9,15.754]
[1747983914246,3.76010528,2659.5,2659.4,11.262]
[1747983914446,3.76010528,2659.5,2659.3,16.217]
[1747983914447,4.79044667,2659.4,2659.3,16.217]
[1747983914638,4.79044667,2659.4,2659.3,43.233]
[1747983914833,4.79044667,2659.4,2659.3,51.233]
[1747983915036,4.79044667,2659.4,2659.3,43.233]
[1747983915641,4.79044667,2659.4,2659.3,51.233]
[1747983918379,1.0302,2659.4,2659.3,51.233]
[1747983918566,4.79044667,2659.4,2659.3,51.233]
[1747983918765,1.0302,2659.4,2659.3,51.233]
[1747983919368,0.55,2659.9,2659.3,51.233]
[1747983919369,4.76442834,2660.0,2659.6,8.0]
[1747983919579,3.75961158,2659.9,2659.8,8.0]
[1747983919895,3.75961158,2659.9,2659.8,35.019]
[1747983919896,3.75953983,2659.9,2659.8,35.019]
[1747983920058,3.75985731,2659.7,2659.5,8.0]
[1747983920253,3.75988619,2659.7,2659.6,35.021]
[1747983922040,3.75970405,2659.8,2659.6,35.021]
[1747983922041,3.75974318,2659.8,2659.7,8.0]
[1747983923378,3.75993078,2659.7,2659.5,8.0]
[1747983923553,3.75953983,2659.9,2659.8,8.0]
[1747983923875,3.75953983,2659.9,2659.4,2.90421145]
[1747983923876,1.0847,2659.5,2659.4,19.265]
[1747983924177,4.84480528,2659.5,2659.4,35.023]
[1747983925882,4.84480528,2659.5,2659.4,8.0]
[1747983926078,4.84480528,2659.5,2659.4,23.759]
[1747983928800,4.84480528,2659.5,2659.3,16.217]
[1747983928801,3.76024667,2659.4,2659.3,35.482]
[1747983929095,3.76024667,2659.4,2659.3,24.217]
[1747983929300,3.76024667,2659.4,2659.3,39.977]
[1747983929974,5.17075187,2659.4,2659.3,39.977]
[1747983930393,5.17075187,2659.4,2659.3,31.977]
[1747983932202,5.17075187,2659.4,2659.3,31.943]
[1747983941330,4.31024667,2659.4,2659.3,31.943]
[1747983941996,4.31024667,2659.4,2659.3,16.217]
[1747983942615,5.33634667,2659.4,2659.3,31.944]
[1747983942816,5.33634667,2659.4,2659.3,16.217]
[1747983943007,5.33634667,2659.4,2659.3,31.944]
[1747983943208,6.24599187,2659.4,2659.3,31.944]
[1747983945322,6.24599187,2659.4,2659.3,16.217]
[1747983946034,12.24599187,2659.4,2659.3,16.217]
[1747983946532,4.77472948,2659.2,2659.1,15.748]
[1747983950237,5.32472948,2659.2,2659.1,0.02]
[1747983950436,13.30023311,2659.2,2659.1,0.02]
[1747983957415,13.30023311,2659.2,2658.6,19.27]
[1747983957416,4.31087102,2659.0,2658.9,12.80827482]
[1747983957616,4.31087102,2659.0,2658.9,28.53827482]
[1747983959061,0.55,2659.0,2658.9,28.53827482]
[1747983959273,6.0,2659.2,2658.9,32.29915781]
[1747983959552,9.76052948,2659.2,2659.1,1.53827482]
[1747983960519,6.0,2659.2,2659.1,1.53827482]
[1747983961011,3.76052948,2659.2,2659.1,1.53827482]
[1747983961853,3.76052948,2659.2,2659.1,28.49327482]
[1747983962061,3.76052948,2659.2,2659.1,26.955]
[1747983965170,5.3545709,2659.1,2659.0,11.269]
[1747983965364,5.3545709,2659.1,2659.0,15.685]
[1747983965571,3.76083707,2659.0,2658.7,1.53827482]
[1747983965737,3.76081233,2659.0,2658.8,26.954]
[1747983966074,5.35461809,2659.1,2658.8,26.954]
[1747983966075,5.35461949,2659.1,2658.8,34.954]
[1747983966373,4.31071949,2659.1,2658.9,1.53827482]
[1747983966551,3.760401,2659.3,2658.9,9.53827482]
[1747983966873,3.76052948,2659.2,2659.1,1.53827482]
[1747983968369,3.76052948,2659.2,2658.9,8.0]
[1747983968370,3.76059761,2659.2,2659.0,1.53827482]
[1747983969160,0.55,2659.5,2659.0,1.53827482]
[1747983969358,4.31024667,2659.4,2659.3,1.53827482]
[1747983969540,4.31024667,2659.4,2659.3,17.22327482]
[1747983970491,3.75988144,2659.7,2659.4,8.0]
[1747983970696,3.75960773,2659.9,2659.6,9.53827482]
[1747983970847,3.75960773,2659.9,2659.8,1.53827482]
[1747983971048,3.7594606,2660.0,2659.8,17.22327482]
[1747983971259,3.75953983,2659.9,2659.8,17.22327482]
[1747983973099,3.75935396,2660.1,2659.8,17.22327482]
[1747983973100,3.75946778,2660.0,2659.8,17.22327482]
[1747983973657,3.75953983,2659.9,2659.8,25.22327482]
[1747983974978,3.75953983,2659.9,2659.8,36.49127482]
[1747983975907,3.75953983,2659.9,2659.8,36.48927482]
[1747983977299,3.75953983,2659.9,2659.8,36.48827482]
[1747983977503,3.75953983,2659.9,2659.8,34.95]
[1747983978298,3.75953983,2659.9,2659.8,36.48827482]
[1747983978900,3.75946688,2660.0,2659.8,36.48827482]